bitfinex-derivatives/quotes_SOLF0:USTF0_20260129
["timestamp","ask_amount","ask_price","bid_price","bid_amount"]
[1769699454724,6.81882824,118.45,118.3,29.76911542]
[1769699454927,6.81882824,118.48,118.33,29.76911542]
[1769699455130,6.81882824,118.6,118.34,29.76911542]
[1769699455427,6.81882824,118.5,118.36,29.76911542]
[1769699455619,26.56161353,118.49,118.36,29.76911542]
[1769699455825,92.85,118.57,118.36,29.76911542]
[1769699456128,26.56161353,118.53,118.36,29.76911542]
[1769699457328,26.56161353,118.54,118.36,29.76911542]
[1769699457827,9.45467085,118.69,118.38,29.76911542]
[1769699457828,26.56161353,118.58,118.38,29.76911542]
[1769699459218,26.56161353,118.54,118.38,29.76911542]
[1769699459422,26.56161353,118.55,118.38,29.76911542]
[1769699459823,26.56161353,118.46,118.3,29.76911542]
[1769699460117,7.16873387,118.61,118.3,29.76911542]
[1769699460325,26.56161353,118.52,118.3,29.76911542]
[1769699460829,26.56161353,118.49,118.3,29.76911542]
[1769699461026,26.56161353,118.49,118.32,29.76911542]
[1769699461218,26.56161353,118.53,118.34,29.76911542]
[1769699462323,26.56161353,118.57,118.36,29.76911542]
[1769699462524,26.56161353,118.57,118.38,29.76911542]
[1769699462730,26.56161353,118.53,118.38,29.76911542]
[1769699463621,26.56161353,118.49,118.38,29.76911542]
[1769699464324,26.56161353,118.53,118.38,29.76911542]
[1769699464520,26.56161353,118.57,118.38,29.76911542]
[1769699464732,26.56161353,118.57,118.4,29.76911542]
[1769699464928,26.56161353,118.57,118.42,29.76911542]
[1769699465734,26.56161353,118.61,118.42,29.76911542]
[1769699467333,26.56161353,118.65,118.44,25.31]
[1769699467532,26.56161353,118.65,118.46,29.76911542]
[1769699468140,26.56161353,118.61,118.46,29.76911542]
[1769699468335,26.56161353,118.61,118.46,91.76911542]
[1769699469037,26.56161353,118.61,118.46,29.76911542]
[1769699469234,93.19582818,118.74,118.46,29.76911542]
[1769699469235,25.31,118.65,118.46,29.76911542]
[1769699469536,26.56161353,118.6,118.46,29.76911542]
[1769699470433,25.73582818,118.74,118.46,29.76911542]
[1769699470434,26.56161353,118.65,118.46,29.76911542]
[1769699471538,26.56161353,118.65,118.48,29.76911542]
[1769699472133,26.56161353,118.65,118.5,29.76911542]
[1769699472636,25.31,118.7,118.49,62.0]
[1769699472637,5.26772059,118.75,118.54,29.76911542]
[1769699472937,31.82933412,118.75,118.54,29.76911542]
[1769699473348,31.82933412,118.75,118.56,29.76911542]
[1769699473830,57.13933412,118.75,118.56,29.76911542]
[1769699474434,118.1544,118.69,118.56,29.76911542]
[1769699474836,7.5963,118.68,118.56,29.76911542]
[1769699475135,118.169,118.67,118.56,29.76911542]
[1769699475438,118.1901,118.65,118.56,29.76911542]
[1769699475640,118.169,118.67,118.47,29.76911542]
[1769699475641,118.2402,118.6,118.47,29.76911542]
[1769699475834,118.2294,118.61,118.47,29.76911542]
[1769699476036,7.6018,118.59,118.47,29.76911542]
[1769699476335,118.2387,118.6,118.48,29.76911542]
[1769699476541,118.2292,118.61,118.48,29.76911542]
[1769699476932,118.2387,118.6,118.48,29.76911542]
[1769699477134,118.2012,118.64,118.48,29.76911542]
[1769699477135,118.2792,118.56,118.48,29.76911542]
[1769699477441,118.3023,118.54,118.43,238.58911542]
[1769699477638,118.3023,118.54,118.44,29.76911542]
[1769699478037,7.6059,118.53,118.44,29.76911542]
[1769699478343,118.2892,118.55,118.44,29.76911542]
[1769699478538,118.2986,118.54,118.44,29.76911542]
[1769699478732,118.3103,118.53,118.44,29.76911542]
[1769699479036,118.3195,118.52,118.44,29.76911542]
[1769699479261,118.2986,118.54,118.44,29.76911542]
[1769699479542,118.2892,118.55,118.44,29.76911542]
[1769699480037,7.6056,118.53,118.44,29.76911542]
[1769699480433,118.2885,118.55,118.44,29.76911542]
[1769699480636,118.3389,118.5,118.41,29.76911542]
[1769699480830,118.35,118.49,118.41,29.76911542]
[1769699481343,118.3188,118.52,118.41,29.76911542]
[1769699481841,7.6065,118.52,118.41,29.76911542]
[1769699482041,118.2931,118.55,118.41,29.76911542]
[1769699482433,118.3095,118.53,118.41,29.76911542]
[1769699482629,118.3192,118.52,118.41,29.76911542]
[1769699482833,7.6077,118.5,118.41,29.76911542]
[1769699484644,118.2911,118.55,118.41,29.76911542]
[1769699485034,118.3092,118.53,118.41,29.76911542]
[1769699485334,118.3186,118.52,118.41,29.76911542]
[1769699485638,118.2896,118.55,118.42,29.76911542]
[1769699485834,118.303,118.54,118.42,29.76911542]
[1769699486239,7.6064,118.52,118.42,29.76911542]
[1769699486542,118.3218,118.52,118.42,29.76911542]
[1769699486741,118.303,118.54,118.42,29.76911542]
[1769699487041,118.3198,118.52,118.42,29.76911542]
[1769699487241,7.6078,118.5,118.42,29.76911542]
[1769699487436,118.3198,118.52,118.42,29.76911542]
[1769699488040,7.6071,118.51,118.42,29.76911542]
[1769699488539,125.9162,118.53,118.42,29.76911542]
[1769699488744,118.3103,118.53,118.42,29.76911542]
[1769699489245,7.6071,118.51,118.42,29.76911542]
[1769699489442,118.3204,118.52,118.42,29.76911542]
[1769699489639,118.3499,118.49,118.39,29.76911542]
[1769699489845,7.6096,118.47,118.39,29.76911542]
[1769699490545,7.6101,118.46,118.39,29.76911542]
[1769699490838,7.6101,118.46,118.33,287.3877]
[1769699490839,118.3717,118.47,118.31,29.76911542]
[1769699491046,7.6128,118.42,118.31,29.76911542]
[1769699491234,118.4206,118.42,118.31,29.76911542]
[1769699491438,118.4206,118.42,118.32,29.76911542]
[1769699492039,118.4394,118.4,118.32,29.76911542]
[1769699492246,118.4404,118.4,118.32,29.76911542]
[1769699492448,7.6153,118.38,118.32,29.76911542]
[1769699492645,118.4404,118.4,118.31,297.78]
[1769699492848,118.4808,118.36,118.28,29.76911542]
[1769699493147,118.4553,118.39,118.28,29.76911542]
[1769699493644,118.4688,118.37,118.28,29.76911542]
[1769699493838,118.4787,118.36,118.26,359.9]
[1769699494247,118.4787,118.36,118.26,389.66911542]
[1769699494846,7.6192,118.32,118.26,297.9]
[1769699495041,118.4992,118.34,118.26,297.9]
[1769699495240,118.5167,118.33,118.26,297.9]
[1769699495641,7.6179,118.34,118.26,297.9]
[1769699495844,118.4999,118.34,118.26,297.9]
[1769699496042,118.4902,118.35,118.26,297.9]
[1769699496244,7.618,118.34,118.26,297.9]
[1769699496440,118.5502,118.29,118.17,29.76911542]
[1769699496646,118.5817,118.26,118.17,29.76911542]
[1769699496846,118.5895,118.25,118.17,29.76911542]
[1769699497349,126.2048,118.26,118.17,29.76911542]
[1769699497550,118.5817,118.26,118.15,228.04]
[1769699497945,7.6247,118.24,118.15,257.80911542]
[1769699498650,126.2047,118.26,118.15,257.80911542]
[1769699498851,136.29805346,118.29,118.16,29.76911542]
[1769699499054,136.29825346,118.29,118.16,29.76911542]
[1769699499349,118.5409,118.3,118.16,29.76911542]
[1769699499552,118.5488,118.29,118.16,29.76911542]
[1769699500049,118.5586,118.28,118.16,29.76911542]
[1769699500755,118.5711,118.27,118.16,29.76911542]
[1769699501142,118.5586,118.28,118.16,29.76911542]
[1769699501348,136.29895346,118.29,118.16,29.76911542]
[1769699501548,7.6213,118.29,118.16,36.58980164]
[1769699501852,126.1699,118.29,118.16,36.58980164]
[1769699502550,7.6213,118.29,118.16,36.58980164]
[1769699502754,125.35098622,118.31,118.17,29.76911542]
[1769699503153,118.5695,118.27,118.17,29.76911542]
[1769699503355,118.579,118.26,118.17,330.50911542]
[1769699503556,118.5396,118.3,118.18,29.76911542]
[1769699503854,125.36028622,118.3,118.18,29.76911542]
[1769699504254,126.1718,118.29,118.18,29.76911542]
[1769699504455,7.6216,118.29,118.18,29.76911542]
[1769699505253,6.82068622,118.3,118.18,29.76911542]
[1769699505556,118.5506,118.29,118.18,29.76911542]
[1769699505759,118.5612,118.28,118.18,29.76911542]
[1769699506456,118.5506,118.29,118.18,29.76911542]
[1769699506764,6.82068622,118.3,118.18,29.76911542]
[1769699506959,118.5289,118.31,118.18,29.76911542]
[1769699507861,118.5595,118.28,118.18,29.76911542]
[1769699508457,118.5389,118.3,118.18,29.76911542]
[1769699509060,7.6218,118.28,118.18,29.76911542]
[1769699509555,7.6186,118.33,118.2,29.76911542]
[1769699510859,118.4588,118.38,118.22,29.76911542]
[1769699511169,118.4588,118.38,118.23,29.76911542]
[1769699511356,118.4588,118.38,118.25,29.76911542]
[1769699511661,7.616,118.37,118.26,29.76911542]
[1769699511863,118.4588,118.38,118.27,29.76911542]
[1769699512166,7.6154,118.38,118.27,29.76911542]
[1769699512364,118.4789,118.36,118.27,29.76911542]
[1769699512563,7.6172,118.35,118.27,91.76911542]
[1769699512969,7.6172,118.35,118.27,29.76911542]
[1769699513260,7.618,118.34,118.26,302.3]
[1769699513466,118.5094,118.33,118.23,29.76911542]
[1769699513660,7.6207,118.3,118.23,29.76911542]
[1769699514061,118.5094,118.33,118.23,29.76911542]
[1769699514358,7.6195,118.32,118.23,29.76911542]
[1769699514562,118.4787,118.36,118.23,29.76911542]
[1769699514958,118.4602,118.38,118.23,29.76911542]
[1769699515160,118.4884,118.35,118.23,29.76911542]
[1769699515563,7.6175,118.35,118.23,29.76911542]
[1769699516066,118.4889,118.35,118.25,29.76911542]
[1769699516363,118.4984,118.34,118.26,302.78]
[1769699516568,118.4984,118.34,118.24,62.0]
[1769699516757,118.4984,118.34,118.25,302.84]
[1769699516958,7.6192,118.32,118.25,302.84]
[1769699517664,7.6185,118.33,118.25,302.84]
[1769699517870,118.4607,118.38,118.26,29.76911542]
[1769699518163,118.4504,118.39,118.26,29.76911542]
[1769699519466,7.6159,118.37,118.27,29.76911542]
[1769699519867,118.4727,118.37,118.28,62.0]
[1769699520066,118.4785,118.36,118.29,303.98]
[1769699520268,118.4898,118.35,118.28,303.98]
[1769699520662,118.4915,118.35,118.28,303.98]
[1769699520865,118.5195,118.32,118.23,29.76911542]
[1769699521069,118.5195,118.32,118.24,238.62]
[1769699521270,118.5504,118.29,118.18,29.76911542]
[1769699521472,118.5504,118.29,118.19,334.04911542]
[1769699522365,118.5699,118.27,118.15,29.76911542]
[1769699522563,118.5699,118.27,118.17,29.76911542]
[1769699522961,7.6243,118.24,118.17,29.76911542]
[1769699523167,118.5906,118.25,118.17,29.76911542]
[1769699523466,118.5906,118.25,118.18,304.6]
[1769699523668,118.6106,118.23,118.14,29.76911542]
[1769699523876,118.6106,118.23,118.15,304.64]
[1769699524072,118.6299,118.21,118.11,29.76911542]
[1769699524370,118.6501,118.19,118.11,253.80911542]
[1769699524560,118.6202,118.22,118.11,29.76911542]
[1769699524767,118.6132,118.23,118.13,29.76911542]
[1769699525072,118.6294,118.21,118.09,35.0897536]
[1769699525270,118.6499,118.19,118.1,304.72]
[1769699525475,126.2903,118.18,118.09,35.0897536]
[1769699525768,118.639,118.2,118.09,35.0897536]
[1769699525970,7.6287,118.17,118.09,5.32063818]
[1769699526170,118.6845,118.16,118.09,5.32063818]
[1769699526367,118.6995,118.14,118.09,5.32063818]
[1769699526574,118.6995,118.14,117.98,255.46477679]
[1769699526575,118.7396,118.1,117.98,29.76911542]
[1769699526764,118.7915,118.05,117.93,29.76911542]
[1769699526965,118.7915,118.05,117.89,136.9578513]
[1769699526966,118.8637,117.98,117.89,0.25447451]
[1769699527174,118.8835,117.96,117.89,0.25447451]
[1769699527378,118.8719,117.97,117.89,0.25447451]
[1769699527570,118.8612,117.98,117.89,30.02358993]
[1769699527770,118.8424,118.0,117.89,30.02358993]
[1769699527968,118.8666,117.98,117.89,0.25447451]
[1769699528281,118.8424,118.0,117.83,5.37355577]
[1769699528282,118.9048,117.94,117.83,5.37355577]
[1769699528467,118.9154,117.93,117.83,5.37355577]
[1769699528669,136.65667679,117.94,117.83,35.26990845]
[1769699528870,24.89022223,118.15,117.83,35.26990845]
[1769699528871,118.8726,117.97,117.83,35.26990845]
[1769699529066,118.8822,117.96,117.83,35.26990845]
[1769699529274,118.8735,117.97,117.83,35.26990845]
[1769699529476,118.9062,117.94,117.83,35.20990845]
[1769699529781,118.9457,117.9,117.83,5.31355577]
[1769699530083,118.9451,117.9,117.83,5.31355577]
[1769699530276,118.9629,117.88,117.83,5.31355577]
[1769699530481,118.9541,117.89,117.83,5.31355577]
[1769699530671,118.9448,117.9,117.83,5.31355577]
[1769699530874,118.9631,117.88,117.83,5.31355577]
[1769699531275,118.9224,117.92,117.83,5.31355577]
[1769699531485,118.9131,117.93,117.83,5.31355577]
[1769699532076,118.9023,117.94,117.83,35.20990845]
[1769699532077,118.9027,117.94,117.83,35.20990845]
[1769699532287,118.8725,117.97,117.83,35.20990845]
[1769699532586,118.8933,117.95,117.83,35.20990845]
[1769699532782,118.9329,117.91,117.83,5.31355577]
[1769699532987,118.9158,117.93,117.83,5.31355577]
[1769699533178,118.9325,117.91,117.83,5.31355577]
[1769699533380,118.9426,117.9,117.83,5.31355577]
[1769699533685,118.9549,117.89,117.83,5.31355577]
[1769699533878,118.9729,117.87,117.83,5.577e-05]
[1769699534190,118.9853,117.86,117.83,5.577e-05]
[1769699534486,119.0036,117.84,117.72,29.89635268]
[1769699534692,119.0149,117.83,117.72,29.89635268]
[1769699534986,119.0658,117.78,117.68,29.89635268]
[1769699535174,119.0658,117.78,117.63,29.89635268]
[1769699535175,119.085,117.76,117.63,29.89635268]
[1769699535378,119.085,117.76,117.64,281.61635268]
[1769699535574,119.0987,117.75,117.64,29.89635268]
[1769699535779,119.1247,117.72,117.64,29.89635268]
[1769699535975,119.1448,117.7,117.57,35.32282603]
[1769699536182,119.1368,117.71,117.57,35.32282603]
[1769699536386,119.1476,117.7,117.58,368.78]
[1769699536589,119.1678,117.68,117.58,29.89635268]
[1769699536885,119.2171,117.63,117.49,29.89635268]
[1769699537182,119.2373,117.61,117.47,169.56]
[1769699537388,119.2373,117.61,117.47,171.04025266]
[1769699537585,119.2373,117.61,117.46,32.41680968]
[1769699537586,119.2667,117.58,117.46,32.41680968]
[1769699537775,119.2796,117.57,117.4,119.445]
[1769699537979,119.3009,117.55,117.4,426.845]
[1769699538179,137.03417679,117.57,117.42,32.41680968]
[1769699538180,119.2826,117.57,117.42,32.41680968]
[1769699538380,119.2738,117.58,117.44,32.41680968]
[1769699538586,119.2259,117.62,117.48,32.41680968]
[1769699538781,119.2161,117.63,117.5,32.41680968]
[1769699538985,119.2088,117.64,117.48,460.94010968]
[1769699539187,119.2256,117.62,117.5,32.41680968]
[1769699539382,119.1945,117.65,117.5,151.75570968]
[1769699539580,119.1765,117.67,117.53,32.41680968]
[1769699539887,119.2394,117.61,117.46,119.3834]
[1769699540189,119.2865,117.56,117.41,153.33274981]
[1769699540487,119.3523,117.5,117.34,239.0082]
[1769699540682,119.3781,117.47,117.32,119.5264]
[1769699540880,119.391,117.46,117.31,125.01639094]
[1769699541084,119.3887,117.46,117.32,32.41680968]
[1769699541286,119.3659,117.48,117.34,32.41680968]
[1769699541488,119.327,117.52,117.38,32.41680968]
[1769699541690,119.314,117.54,117.38,470.58110968]
[1769699541988,126.9738,117.55,117.39,151.86960968]
[1769699542185,119.3046,117.55,117.4,119.4424]
[1769699542383,119.2694,117.58,117.44,119.406]
[1769699542585,126.922,117.59,117.44,119.406]
[1769699542586,119.2453,117.6,117.44,119.406]
[1769699542891,119.2381,117.61,117.42,181.4217]
[1769699543093,17.75457679,117.6,117.42,119.4247]
[1769699543388,119.1995,117.65,117.47,119.3731]
[1769699543580,119.2262,117.62,117.44,119.4037]
[1769699543778,119.2285,117.62,117.44,119.4037]
[1769699543986,136.96417679,117.64,117.46,119.3835]
[1769699544186,17.75457679,117.64,117.48,119.3601]
[1769699544392,119.1753,117.67,117.5,119.3436]
[1769699544582,119.2267,117.62,117.45,119.3952]
[1769699544782,119.2838,117.57,117.41,119.4344]
[1769699544985,119.2463,117.6,117.43,119.4108]
[1769699545290,119.2463,117.6,117.42,119.4249]
[1769699545291,17.75457679,117.6,117.49,119.353]
[1769699545479,17.75457679,117.66,117.53,119.3105]
[1769699545687,119.2055,117.64,117.5,119.3437]
[1769699545885,119.1766,117.67,117.51,119.3264]
[1769699546085,119.196,117.65,117.5,119.3437]
[1769699546284,43.06457679,117.59,117.46,119.3768]
[1769699546489,43.06457679,117.59,117.46,119.3826]
[1769699546689,119.2668,117.58,117.45,119.3909]
[1769699546890,17.75457679,117.53,117.41,119.434]
[1769699547090,162.38187679,117.53,117.39,119.4549]
[1769699547285,162.41237679,117.5,117.38,0.25558016]
[1769699547486,25.31,117.46,117.35,119.4935]
[1769699547686,119.3372,117.51,117.35,119.4935]
[1769699547687,144.6472,117.51,117.38,119.4654]
[1769699547891,144.6472,117.51,117.36,119.4839]
[1769699547892,43.06457679,117.46,117.36,119.4839]
[1769699548088,17.75457679,117.49,117.36,119.4816]
[1769699548491,119.2977,117.55,117.41,119.4307]
[1769699548798,25.31,117.57,117.44,119.4037]
[1769699548999,25.31,117.57,117.45,119.3928]
[1769699549189,25.31,117.57,117.46,119.3821]
[1769699549387,25.31,117.57,117.41,119.4342]
[1769699549388,162.36127679,117.55,117.41,119.4342]
[1769699549698,17.75457679,117.55,117.42,119.4237]
[1769699549996,119.3388,117.51,117.37,119.4746]
[1769699550297,17.75457679,117.54,117.42,119.4261]
[1769699550490,17.75457679,117.54,117.38,119.4651]
[1769699550799,137.06217679,117.54,117.37,119.4726]
[1769699551099,17.75457679,117.54,117.4,119.4449]
[1769699551394,17.75457679,117.6,117.47,119.3735]
[1769699551599,136.97057679,117.63,117.47,159.59209976]
[1769699551899,17.75457679,117.6,117.45,119.3944]
[1769699552095,137.00197679,117.6,117.44,127.08]
[1769699552301,137.03147679,117.57,117.39,119.4525]
[1769699552495,137.03147679,117.57,117.38,152.00899976]
[1769699552496,17.75457679,117.51,117.38,32.54459976]
[1769699552794,17.75457679,117.51,117.38,119.4646]
[1769699552995,137.09217679,117.51,117.35,119.4955]
[1769699553187,17.75457679,117.51,117.39,119.4538]
[1769699553390,137.02967679,117.57,117.41,119.4288]
[1769699553589,137.02967679,117.57,117.41,127.1083]
[1769699553789,137.02967679,117.57,117.42,119.425]
[1769699553996,119.2468,117.6,117.46,119.3791]
[1769699554198,119.2679,117.58,117.42,119.4203]
[1769699554387,17.75457679,117.57,117.43,119.4123]
[1769699554588,137.00227679,117.6,117.45,119.3943]
[1769699554898,119.205,117.64,117.49,151.89819976]
[1769699555094,119.1544,117.69,117.54,32.54459976]
[1769699555293,119.1395,117.71,117.56,119.2822]
[1769699555497,119.1431,117.7,117.56,32.54459976]
[1769699555695,119.1874,117.66,117.52,32.54459976]
[1769699556197,119.2282,117.62,117.48,151.90979976]
[1769699556498,126.9474,117.57,117.44,32.54459976]
[1769699556700,7.6678,117.57,117.44,32.54459976]
[1769699557000,126.9363,117.58,117.46,32.54459976]
[1769699557303,119.2578,117.59,117.46,32.54459976]
[1769699557503,119.2766,117.57,117.46,32.54459976]
[1769699557911,119.3067,117.54,117.4,32.54459976]
[1769699558203,119.3173,117.53,117.4,359.98459976]
[1769699558404,119.2763,117.57,117.43,32.54459976]
[1769699558597,119.2968,117.55,117.43,32.54459976]
[1769699558903,119.3484,117.5,117.39,32.54459976]
[1769699559498,119.3034,117.55,117.39,32.54459976]
[1769699559802,119.2887,117.56,117.41,32.54459976]
[1769699559992,119.2467,117.6,117.44,32.54459976]
[1769699560298,119.2655,117.58,117.45,32.54459976]
[1769699560699,7.6669,117.58,117.45,32.54459976]
[1769699560894,119.3381,117.51,117.41,32.54459976]
[1769699561398,119.3802,117.47,117.36,32.54459976]
[1769699561598,119.413,117.44,117.32,32.54459976]
[1769699561802,119.3893,117.46,117.32,32.54459976]
[1769699562203,119.4199,117.43,117.32,32.54459976]
[1769699562398,7.6756,117.45,117.32,32.54459976]
[1769699562805,119.3688,117.48,117.32,32.54459976]
[1769699563009,119.3908,117.46,117.32,32.54459976]
[1769699563199,119.3477,117.5,117.34,32.54459976]
[1769699563809,119.3252,117.52,117.36,32.54459976]
[1769699564000,119.3062,117.54,117.36,32.54459976]
[1769699564199,126.9855,117.53,117.38,32.54459976]
[1769699564399,119.3153,117.53,117.38,32.54459976]
[1769699564605,119.3386,117.51,117.38,32.54459976]
[1769699565204,119.3427,117.51,117.38,32.54459976]
[1769699565402,144.6527,117.51,117.34,62.0]
[1769699565707,119.3832,117.47,117.33,32.54459976]
[1769699565908,7.6749,117.46,117.33,32.54459976]
[1769699566109,119.3885,117.46,117.33,32.54459976]
[1769699566310,171.58649077,117.48,117.33,32.54459976]
[1769699566607,119.393,117.46,117.33,32.54459976]
[1769699566800,119.3762,117.47,117.33,32.54459976]
[1769699566997,146.27649077,117.48,117.33,32.54459976]
[1769699567197,127.0505,117.47,117.33,32.54459976]
[1769699567401,119.3868,117.46,117.33,32.54459976]
[1769699567607,119.3868,117.46,117.31,335.33939094]
[1769699567608,127.0831,117.44,117.31,5.47939094]
[1769699567799,119.4096,117.44,117.31,38.0239907]
[1769699568001,119.4129,117.44,117.31,38.0239907]
[1769699568205,7.6764,117.44,117.31,38.0239907]
[1769699568411,119.4119,117.44,117.31,38.0239907]
[1769699568605,119.394,117.46,117.31,38.0239907]
[1769699568804,119.4068,117.44,117.31,38.0239907]
[1769699569007,119.3872,117.46,117.31,38.0239907]
[1769699569207,146.29559077,117.47,117.31,38.0239907]
[1769699569508,119.3895,117.46,117.31,38.0239907]
[1769699570010,146.28709077,117.47,117.32,32.54459976]
[1769699570216,119.388,117.46,117.32,32.54459976]
[1769699571008,119.3566,117.49,117.33,32.54459976]
[1769699571405,146.22759077,117.53,117.36,32.54459976]
[1769699571610,7.6712,117.52,117.39,32.54459976]
[1769699571907,26.90969077,117.56,117.39,32.54459976]
[1769699571908,119.2856,117.56,117.41,32.54459976]
[1769699572103,119.2575,117.59,117.44,32.54459976]
[1769699572306,146.14359077,117.61,117.46,32.54459976]
[1769699572512,7.6647,117.62,117.48,40.21779976]
[1769699572712,7.6647,117.62,117.48,32.54459976]
[1769699573219,119.1853,117.66,117.51,32.54459976]
[1769699573421,119.2137,117.63,117.51,32.54459976]
[1769699573611,7.6647,117.62,117.51,32.54459976]
[1769699574113,119.1652,117.68,117.51,32.54459976]
[1769699574311,119.1652,117.68,117.53,32.54459976]
[1769699574509,119.144,117.7,117.49,119.3534]
[1769699574510,119.2158,117.63,117.49,32.54459976]
[1769699574714,146.06449077,117.69,117.53,32.54459976]
[1769699574906,119.1036,117.74,117.59,32.54459976]
[1769699575106,126.7641,117.74,117.59,32.54459976]
[1769699575311,7.6569,117.74,117.6,32.54459976]
[1769699575520,119.0943,117.75,117.6,32.54459976]
[1769699575714,26.90969077,117.77,117.63,32.54459976]
[1769699575919,119.0442,117.8,117.65,32.54459976]
[1769699576116,119.0315,117.81,117.66,32.54459976]
[1769699576419,119.0543,117.79,117.67,32.54459976]
[1769699576618,119.0434,117.8,117.67,32.54459976]
[1769699576812,119.0649,117.78,117.67,32.54459976]
[1769699577120,26.90969077,117.76,117.62,32.54459976]
[1769699577814,119.0644,117.78,117.64,32.54459976]
[1769699578022,26.90969077,117.81,117.66,151.72319976]
[1769699578208,126.6739,117.82,117.68,32.54459976]
[1769699578411,119.0037,117.84,117.69,32.54459976]
[1769699578714,26.90969077,117.81,117.69,32.54459976]
[1769699578909,26.90969077,117.84,117.71,32.54459976]
[1769699579220,145.88319077,117.87,117.73,32.54459976]
[1769699579418,126.6161,117.88,117.74,151.64479976]
[1769699579722,126.6161,117.88,117.74,32.54459976]
[1769699579921,118.9729,117.87,117.74,32.54459976]
[1769699580310,7.6475,117.88,117.75,32.54459976]
[1769699580610,118.9341,117.91,117.79,32.54459976]
[1769699580813,118.9429,117.9,117.77,32.54459976]
[1769699581015,126.5891,117.9,117.77,32.54459976]
[1769699581217,145.82259077,117.93,117.79,151.59389976]
[1769699581418,118.8906,117.95,117.8,32.54459976]
[1769699581621,5.42647335,117.97,117.84,32.54459976]
[1769699581825,5.42647335,117.97,117.85,32.54459976]
[1769699582313,5.42647335,117.97,117.86,361.52459976]
[1769699582513,5.42647335,117.97,117.86,32.54459976]
[1769699582919,5.42647335,117.97,117.87,32.54459976]
[1769699583113,118.7861,118.06,117.86,118.9778]
[1769699583114,145.67809077,118.08,117.91,31.4522448]
[1769699583322,118.7733,118.07,117.91,31.4522448]
[1769699583527,118.7733,118.07,117.93,31.4522448]
[1769699583823,118.7684,118.08,117.93,31.4522448]
[1769699584020,118.7409,118.1,117.95,31.4522448]
[1769699584218,126.3647,118.11,117.95,31.4522448]
[1769699584525,118.7216,118.12,117.97,31.4522448]
[1769699584718,118.7519,118.09,117.97,31.4522448]
[1769699585023,118.7523,118.09,117.97,31.4522448]
[1769699585221,118.7553,118.09,117.97,31.4522448]
[1769699585818,126.3765,118.1,117.97,31.4522448]
[1769699586017,118.7731,118.07,117.97,31.4522448]
[1769699586321,118.7617,118.08,117.97,31.4522448]
[1769699586711,145.64179077,118.11,117.97,31.4522448]
[1769699587219,126.3647,118.11,117.97,31.4522448]
[1769699587615,118.741,118.1,117.97,31.4522448]
[1769699587824,118.7201,118.12,117.97,31.4522448]
[1769699588017,118.7087,118.14,117.98,31.4522448]
[1769699588215,145.61839077,118.14,117.98,31.4522448]
[1769699588414,237.31,118.19,118.03,31.4522448]
[1769699588620,118.6262,118.22,118.07,31.4522448]
[1769699588820,131.60945577,118.23,118.09,31.4522448]
[1769699589020,118.6233,118.22,118.09,359.1322448]
[1769699589230,118.6547,118.19,118.09,31.4522448]
[1769699589621,118.6809,118.16,118.04,31.4522448]
[1769699589923,118.6617,118.18,118.04,31.4522448]
[1769699590426,118.6928,118.15,118.04,31.4522448]
[1769699590925,118.7333,118.11,117.99,31.4522448]
[1769699591318,145.62179077,118.13,117.99,31.4522448]
[1769699591319,26.90969077,118.13,117.99,31.4522448]
[1769699591519,264.28689077,118.16,118.01,31.4522448]
[1769699591822,118.7019,118.14,118.01,31.4522448]
[1769699592021,118.7019,118.14,118.03,31.4522448]
[1769699592022,126.3325,118.14,118.03,31.4522448]
[1769699592425,126.3435,118.13,118.03,31.4522448]
[1769699592622,118.6688,118.18,118.03,31.4522448]
[1769699592822,118.6729,118.17,118.03,31.4522448]
[1769699593027,118.6955,118.15,118.03,31.4522448]
[1769699593219,118.7016,118.14,118.03,31.4522448]
[1769699593426,118.717,118.13,118.03,31.4522448]
[1769699593618,145.61129077,118.14,118.03,31.4522448]
[1769699593819,118.7016,118.14,118.03,31.4522448]
[1769699594126,118.714,118.13,118.0,31.4522448]
[1769699594327,118.6955,118.15,118.0,31.4522448]
[1769699594328,118.6955,118.15,118.02,31.4522448]
[1769699594530,118.6707,118.17,118.03,31.4522448]
[1769699594726,118.6411,118.2,118.06,31.4522448]
[1769699594930,118.7115,118.13,118.06,31.4522448]
[1769699595232,118.7113,118.13,118.01,31.4522448]